[Event "Titled Tuesday Blitz May 16 Late 2023"]
[White "Domingo Nunez, Ruben"]
[Black "Wieczorek, Zbigniew"]
[WhiteFideId "22245570"]
[BlackFideId "1102001"]
[WhiteElo "2404"]
[BlackElo "2328"]
[Result "1-0"]
[Round "09"]
[TimeControl "180+2"]
[Date "2023.05.16"]
[WhiteClock "0:01:10"]
[BlackClock "0:00:02"]

1. c4 {[%clk 0:03:00]}  Nf6 {[%clk 0:02:53]} 2. Nf3 {[%clk 0:03:00]}  g6 {[%clk 0:02:51]} 3. Nc3 {[%clk 0:02:59]}  Bg7 {[%clk 0:02:52]} 4. g3 {[%clk 0:02:59]}  d6 {[%clk 0:02:51]} 5. Bg2 {[%clk 0:03:00]}  O-O {[%clk 0:02:52]} 6. d4 {[%clk 0:02:59]}  Nbd7 {[%clk 0:02:50]} 7. O-O {[%clk 0:03:00]}  e5 {[%clk 0:02:51]} 8. dxe5 {[%clk 0:02:52]}  dxe5 {[%clk 0:02:50]} 9. Qc2 {[%clk 0:02:51]}  c6 {[%clk 0:02:47]} 10. b3 {[%clk 0:02:49]}  Re8 {[%clk 0:02:47]} 11. Bb2 {[%clk 0:02:46]}  Nc5 {[%clk 0:02:38]} 12. Rad1 {[%clk 0:02:40]}  Qb6 {[%clk 0:02:25]} 13. Ba3 {[%clk 0:02:24]}  Bf5 {[%clk 0:02:19]} 14. Qc1 {[%clk 0:02:25]}  a5 {[%clk 0:02:08]} 15. Qe3 {[%clk 0:02:22]}  Ncd7 {[%clk 0:02:02]} 16. c5 {[%clk 0:02:14]}  Qc7 {[%clk 0:01:56]} 17. Na4 {[%clk 0:02:10]}  Nd5 {[%clk 0:01:51]} 18. Qc1 {[%clk 0:02:09]}  Be4 {[%clk 0:01:07]} 19. Bh3 {[%clk 0:02:05]}  Bxf3 {[%clk 0:00:51]} 20. exf3 {[%clk 0:02:04]}  f5 {[%clk 0:00:48]} 21. Rfe1 {[%clk 0:02:04]}  Nf8 {[%clk 0:00:32]} 22. Bf1 {[%clk 0:02:04]}  Kh8 {[%clk 0:00:30]} 23. Bc4 {[%clk 0:02:05]}  Rad8 {[%clk 0:00:26]} 24. Rd3 {[%clk 0:01:31]}  Ne6 {[%clk 0:00:25]} 25. Qd1 {[%clk 0:01:23]}  Nd4 {[%clk 0:00:17]} 26. f4 {[%clk 0:01:23]}  Nxf4 {[%clk 0:00:07]} 27. gxf4 {[%clk 0:01:20]}  e4 {[%clk 0:00:08]} 28. Rde3 {[%clk 0:01:07]}  Nf3+ {[%clk 0:00:07]} 29. Qxf3 {[%clk 0:01:08]}  exf3 {[%clk 0:00:05]} 30. Rxe8+ {[%clk 0:01:09]}  Rxe8 {[%clk 0:00:04]} 31. Rxe8+ {[%clk 0:01:09]}  Bf8 {[%clk 0:00:05]} 32. Rxf8+ {[%clk 0:01:09]}  Kg7 {[%clk 0:00:02]} 33. Rf7+ {[%clk 0:01:10]} 1-0


[Site "https://www.chess.com"]

[Event "Titled Tuesday Blitz May 16 Late 2023"]
[White "Papasimakopoulos, Alexandros"]
[Black "Sargsyan, Anna M."]
[WhiteFideId "4244125"]
[BlackFideId "13308130"]
[WhiteElo "2359"]
[BlackElo "2284"]
[Result "1-0"]
[Round "09"]
[TimeControl "180+2"]
[Date "2023.05.16"]
[WhiteClock "0:01:02"]
[BlackClock "0:00:00"]

1. f4 {[%clk 0:03:00]}  e5 {[%clk 0:02:56]} 2. fxe5 {[%clk 0:03:00]}  d6 {[%clk 0:02:57]} 3. Nf3 {[%clk 0:02:56]}  dxe5 {[%clk 0:02:56]} 4. e4 {[%clk 0:02:56]}  Nc6 {[%clk 0:02:48]} 5. Bb5 {[%clk 0:02:55]}  Bc5 {[%clk 0:02:43]} 6. d3 {[%clk 0:02:54]}  Ne7 {[%clk 0:02:41]} 7. Qe2 {[%clk 0:02:47]}  O-O {[%clk 0:02:40]} 8. Be3 {[%clk 0:02:46]}  Nd4 {[%clk 0:02:33]} 9. Nxd4 {[%clk 0:02:28]}  exd4 {[%clk 0:02:27]} 10. Bf2 {[%clk 0:02:19]}  f5 {[%clk 0:02:25]} 11. Nd2 {[%clk 0:02:14]}  fxe4 {[%clk 0:02:18]} 12. Nxe4 {[%clk 0:02:15]}  Bb4+ {[%clk 0:02:18]} 13. c3 {[%clk 0:02:12]}  dxc3 {[%clk 0:02:17]} 14. bxc3 {[%clk 0:02:13]}  Bd6 {[%clk 0:02:17]} 15. O-O {[%clk 0:02:06]}  Ng6 {[%clk 0:02:13]} 16. Bc4+ {[%clk 0:01:59]}  Kh8 {[%clk 0:02:12]} 17. Nxd6 {[%clk 0:01:55]}  Qxd6 {[%clk 0:02:05]} 18. Bg3 {[%clk 0:01:52]}  Qb6+ {[%clk 0:01:57]} 19. Kh1 {[%clk 0:01:49]}  Bf5 {[%clk 0:01:56]} 20. Rab1 {[%clk 0:01:44]}  Qc6 {[%clk 0:01:51]} 21. Qf3 {[%clk 0:01:42]}  Qd7 {[%clk 0:01:30]} 22. Qxb7 {[%clk 0:01:24]}  Bxd3 {[%clk 0:00:15]} 23. Rfd1 {[%clk 0:01:19]}  Qa4 {[%clk 0:00:03]} 24. Bxd3 {[%clk 0:01:17]}  Rad8 {[%clk 0:00:04]} 25. Qb3 {[%clk 0:01:02]}  Qg4 {[%clk 0:00:00]} 26. Bxg6 {[%clk 0:01:02]} 1-0


[Site "https://www.chess.com"]

[Event "Titled Tuesday Blitz May 16 Late 2023"]
[White "Tanenbaum, Zachary"]
[Black "Romkachess"]
[WhiteFideId "2060850"]
[WhiteElo "2175"]
[BlackElo "2571"]
[Result "1-0"]
[Round "09"]
[TimeControl "180+2"]
[Date "2023.05.16"]
[WhiteClock "0:00:53"]
[BlackClock "0:00:00"]

1. e4 {[%clk 0:03:00]}  c5 {[%clk 0:02:54]} 2. Nf3 {[%clk 0:03:01]}  d6 {[%clk 0:02:54]} 3. d4 {[%clk 0:03:01]}  cxd4 {[%clk 0:02:52]} 4. Nxd4 {[%clk 0:03:02]}  Nf6 {[%clk 0:02:52]} 5. Nc3 {[%clk 0:03:02]}  a6 {[%clk 0:02:52]} 6. Be3 {[%clk 0:03:02]}  e5 {[%clk 0:02:49]} 7. Nb3 {[%clk 0:03:02]}  Be6 {[%clk 0:02:44]} 8. f4 {[%clk 0:03:02]}  Nbd7 {[%clk 0:02:41]} 9. f5 {[%clk 0:03:01]}  Bxb3 {[%clk 0:02:41]} 10. axb3 {[%clk 0:03:01]}  d5 {[%clk 0:02:42]} 11. Nxd5 {[%clk 0:02:36]}  Nxe4 {[%clk 0:02:14]} 12. Bb5 {[%clk 0:02:13]}  Bc5 {[%clk 0:01:31]} 13. Qf3 {[%clk 0:01:49]}  Bxe3 {[%clk 0:00:56]} 14. Qxe4 {[%clk 0:01:48]}  Bd4 {[%clk 0:00:40]} 15. c3 {[%clk 0:01:46]}  O-O {[%clk 0:00:29]} 16. Bxd7 {[%clk 0:01:45]}  Qxd7 {[%clk 0:00:25]} 17. cxd4 {[%clk 0:01:45]}  Rad8 {[%clk 0:00:19]} 18. Ra5 {[%clk 0:01:29]}  b5 {[%clk 0:00:19]} 19. Nb4 {[%clk 0:01:16]}  Qc7 {[%clk 0:00:19]} 20. Nc6 {[%clk 0:01:10]}  Rxd4 {[%clk 0:00:17]} 21. Qc2 {[%clk 0:00:57]}  Rd6 {[%clk 0:00:04]} 22. Rxa6 {[%clk 0:00:57]}  h6 {[%clk 0:00:03]} 23. O-O {[%clk 0:00:56]}  e4 {[%clk 0:00:00]} 24. Qc5 {[%clk 0:00:53]} 1-0


[Site "https://www.chess.com"]

[Event "Titled Tuesday Blitz May 16 Late 2023"]
[White "De La Colina, Nicolas"]
[Black "cristianserban1"]
[WhiteFideId "30946921"]
[WhiteElo "2046"]
[BlackElo "2521"]
[Result "1-0"]
[Round "09"]
[TimeControl "180+2"]
[Date "2023.05.16"]
[WhiteClock "0:00:03"]
[BlackClock "0:00:30"]

1. Nf3 {[%clk 0:02:51]}  d5 {[%clk 0:03:00]} 2. e3 {[%clk 0:02:49]}  Nf6 {[%clk 0:02:59]} 3. c4 {[%clk 0:02:49]}  e6 {[%clk 0:02:57]} 4. Nc3 {[%clk 0:02:48]}  c5 {[%clk 0:02:56]} 5. cxd5 {[%clk 0:02:48]}  exd5 {[%clk 0:02:57]} 6. d4 {[%clk 0:02:48]}  Nc6 {[%clk 0:02:51]} 7. Be2 {[%clk 0:02:48]}  cxd4 {[%clk 0:02:38]} 8. Nxd4 {[%clk 0:02:49]}  Bb4 {[%clk 0:02:23]} 9. O-O {[%clk 0:02:44]}  Bxc3 {[%clk 0:02:23]} 10. bxc3 {[%clk 0:02:45]}  O-O {[%clk 0:02:22]} 11. Nxc6 {[%clk 0:02:36]}  bxc6 {[%clk 0:02:22]} 12. c4 {[%clk 0:02:37]}  Ba6 {[%clk 0:02:16]} 13. Bb2 {[%clk 0:02:34]}  Bxc4 {[%clk 0:02:08]} 14. Bxc4 {[%clk 0:02:30]}  dxc4 {[%clk 0:02:09]} 15. Qxd8 {[%clk 0:02:31]}  Rfxd8 {[%clk 0:02:10]} 16. Bxf6 {[%clk 0:02:31]}  gxf6 {[%clk 0:02:10]} 17. Rfc1 {[%clk 0:02:32]}  Rd2 {[%clk 0:02:07]} 18. Rxc4 {[%clk 0:02:29]}  Rb8 {[%clk 0:02:06]} 19. g3 {[%clk 0:02:08]}  Rbb2 {[%clk 0:02:03]} 20. Rf4 {[%clk 0:02:02]}  Rxa2 {[%clk 0:01:57]} 21. Rxa2 {[%clk 0:02:02]}  Rxa2 {[%clk 0:01:57]} 22. Rxf6 {[%clk 0:02:03]}  Rc2 {[%clk 0:01:56]} 23. Rf5 {[%clk 0:01:59]}  c5 {[%clk 0:01:54]} 24. Rf6 {[%clk 0:01:57]}  a5 {[%clk 0:01:54]} 25. Ra6 {[%clk 0:01:56]}  Ra2 {[%clk 0:01:53]} 26. Kg2 {[%clk 0:01:25]}  a4 {[%clk 0:01:51]} 27. Kf3 {[%clk 0:01:16]}  a3 {[%clk 0:01:48]} 28. Ra4 {[%clk 0:01:12]}  Kf8 {[%clk 0:01:44]} 29. Rc4 {[%clk 0:01:10]}  Ke7 {[%clk 0:01:41]} 30. Rxc5 {[%clk 0:01:09]}  Kd6 {[%clk 0:01:41]} 31. Rh5 {[%clk 0:00:56]}  Ra1 {[%clk 0:01:39]} 32. Rxh7 {[%clk 0:00:54]}  a2 {[%clk 0:01:32]} 33. Rh6+ {[%clk 0:00:51]}  Kc5 {[%clk 0:01:31]} 34. Ra6 {[%clk 0:00:52]}  Kb4 {[%clk 0:01:30]} 35. Ra7 {[%clk 0:00:41]}  Kb3 {[%clk 0:01:26]} 36. Rxf7 {[%clk 0:00:29]}  Rh1 {[%clk 0:01:26]} 37. Rb7+ {[%clk 0:00:19]}  Kc4 {[%clk 0:01:25]} 38. Ra7 {[%clk 0:00:16]}  a1=Q {[%clk 0:01:25]} 39. Rxa1 {[%clk 0:00:16]}  Rxa1 {[%clk 0:01:25]} 40. h4 {[%clk 0:00:16]}  Kd5 {[%clk 0:01:25]} 41. Kf4 {[%clk 0:00:12]}  Ke6 {[%clk 0:01:25]} 42. e4 {[%clk 0:00:11]}  Kf6 {[%clk 0:01:22]} 43. f3 {[%clk 0:00:12]}  Ra4 {[%clk 0:01:22]} 44. Kg4 {[%clk 0:00:11]}  Kg6 {[%clk 0:01:18]} 45. h5+ {[%clk 0:00:12]}  Kh6 {[%clk 0:01:18]} 46. Kh4 {[%clk 0:00:12]}  Ra1 {[%clk 0:01:14]} 47. g4 {[%clk 0:00:05]}  Rh1+ {[%clk 0:01:13]} 48. Kg3 {[%clk 0:00:05]}  Rg1+ {[%clk 0:01:13]} 49. Kf4 {[%clk 0:00:05]}  Kg7 {[%clk 0:01:08]} 50. Kf5 {[%clk 0:00:05]}  Kf7 {[%clk 0:01:03]} 51. f4 {[%clk 0:00:05]}  Rh1 {[%clk 0:01:02]} 52. e5 {[%clk 0:00:05]}  Ke7 {[%clk 0:01:00]} 53. Kg5 {[%clk 0:00:05]}  Ke6 {[%clk 0:01:00]} 54. h6 {[%clk 0:00:03]}  Kf7 {[%clk 0:00:58]} 55. f5 {[%clk 0:00:04]}  Rh2 {[%clk 0:00:53]} 56. e6+ {[%clk 0:00:04]}  Ke7 {[%clk 0:00:53]} 57. Kg6 {[%clk 0:00:04]}  Kf8 {[%clk 0:00:50]} 58. g5 {[%clk 0:00:05]}  Kg8 {[%clk 0:00:48]} 59. e7 {[%clk 0:00:05]}  Re2 {[%clk 0:00:49]} 60. f6 {[%clk 0:00:03]}  Re6 {[%clk 0:00:47]} 61. h7+ {[%clk 0:00:03]}  Kh8 {[%clk 0:00:30]} 62. Kf7 {[%clk 0:00:03]} 1-0


[Site "https://www.chess.com"]

[Event "Titled Tuesday Blitz May 16 Late 2023"]
[White "Gritsenko, Nikolai"]
[Black "Karas, Marek"]
[WhiteFideId "14112493"]
[BlackFideId "14928558"]
[WhiteElo "2389"]
[BlackElo "2233"]
[Result "1-0"]
[Round "09"]
[TimeControl "180+2"]
[Date "2023.05.16"]
[WhiteClock "0:00:08"]
[BlackClock "0:00:00"]

1. b3 {[%clk 0:03:00]}  d5 {[%clk 0:02:58]} 2. Bb2 {[%clk 0:03:00]}  Bg4 {[%clk 0:02:59]} 3. Nf3 {[%clk 0:03:00]}  Bxf3 {[%clk 0:02:58]} 4. gxf3 {[%clk 0:03:01]}  Nf6 {[%clk 0:02:57]} 5. e3 {[%clk 0:03:01]}  Nbd7 {[%clk 0:02:55]} 6. c4 {[%clk 0:03:00]}  c6 {[%clk 0:02:52]} 7. Nc3 {[%clk 0:03:00]}  e6 {[%clk 0:02:50]} 8. f4 {[%clk 0:03:00]}  g6 {[%clk 0:02:49]} 9. d4 {[%clk 0:02:53]}  Bg7 {[%clk 0:02:48]} 10. Bg2 {[%clk 0:02:45]}  Qe7 {[%clk 0:02:46]} 11. O-O {[%clk 0:02:44]}  O-O {[%clk 0:02:44]} 12. a3 {[%clk 0:02:41]}  Rfd8 {[%clk 0:02:36]} 13. Qe2 {[%clk 0:02:40]}  Ne8 {[%clk 0:02:21]} 14. Rfd1 {[%clk 0:02:36]}  Nd6 {[%clk 0:02:21]} 15. a4 {[%clk 0:02:31]}  Nf5 {[%clk 0:02:20]} 16. a5 {[%clk 0:02:11]}  Qh4 {[%clk 0:02:12]} 17. a6 {[%clk 0:02:07]}  b6 {[%clk 0:02:11]} 18. cxd5 {[%clk 0:02:00]}  exd5 {[%clk 0:02:07]} 19. Rac1 {[%clk 0:01:49]}  Nf6 {[%clk 0:02:02]} 20. Qf3 {[%clk 0:01:43]}  Rac8 {[%clk 0:01:35]} 21. Ne2 {[%clk 0:01:41]}  Ne4 {[%clk 0:01:31]} 22. Ng3 {[%clk 0:01:39]}  Nfxg3 {[%clk 0:01:28]} 23. hxg3 {[%clk 0:01:39]}  Qe7 {[%clk 0:01:27]} 24. Qe2 {[%clk 0:01:34]}  Re8 {[%clk 0:01:16]} 25. Rc2 {[%clk 0:01:32]}  Qb4 {[%clk 0:01:08]} 26. Qd3 {[%clk 0:01:12]}  Bf8 {[%clk 0:00:47]} 27. Rdc1 {[%clk 0:01:08]}  Re6 {[%clk 0:00:38]} 28. Bxe4 {[%clk 0:00:59]}  dxe4 {[%clk 0:00:35]} 29. Qc4 {[%clk 0:00:58]}  Qxc4 {[%clk 0:00:33]} 30. bxc4 {[%clk 0:00:54]}  c5 {[%clk 0:00:31]} 31. d5 {[%clk 0:00:52]}  Ree8 {[%clk 0:00:31]} 32. Be5 {[%clk 0:00:50]}  Rcd8 {[%clk 0:00:31]} 33. Kg2 {[%clk 0:00:49]}  Bg7 {[%clk 0:00:30]} 34. Bxg7 {[%clk 0:00:48]}  Kxg7 {[%clk 0:00:31]} 35. Rb1 {[%clk 0:00:48]}  Rd6 {[%clk 0:00:30]} 36. g4 {[%clk 0:00:48]}  h6 {[%clk 0:00:30]} 37. Kg3 {[%clk 0:00:48]}  Red8 {[%clk 0:00:30]} 38. f3 {[%clk 0:00:45]}  Re8 {[%clk 0:00:28]} 39. fxe4 {[%clk 0:00:43]}  Rxe4 {[%clk 0:00:28]} 40. Kf3 {[%clk 0:00:43]}  f5 {[%clk 0:00:28]} 41. Rg1 {[%clk 0:00:36]}  Kh7 {[%clk 0:00:22]} 42. Rh2 {[%clk 0:00:19]}  Re7 {[%clk 0:00:17]} 43. Rgh1 {[%clk 0:00:17]}  fxg4+ {[%clk 0:00:15]} 44. Kxg4 {[%clk 0:00:17]}  h5+ {[%clk 0:00:16]} 45. Kf3 {[%clk 0:00:16]}  b5 {[%clk 0:00:16]} 46. e4 {[%clk 0:00:15]}  bxc4 {[%clk 0:00:15]} 47. Rc1 {[%clk 0:00:15]}  Rf6 {[%clk 0:00:10]} 48. Ke3 {[%clk 0:00:11]}  Rd6 {[%clk 0:00:09]} 49. Kf3 {[%clk 0:00:10]}  Rf6 {[%clk 0:00:09]} 50. Ke3 {[%clk 0:00:09]}  Rd6 {[%clk 0:00:08]} 51. Rd2 {[%clk 0:00:08]}  Rxa6 {[%clk 0:00:05]} 52. Rxc4 {[%clk 0:00:08]}  Ra3+ {[%clk 0:00:05]} 53. Rd3 {[%clk 0:00:08]}  Ra1 {[%clk 0:00:05]} 54. d6 {[%clk 0:00:07]}  Rd7 {[%clk 0:00:04]} 55. e5 {[%clk 0:00:08]}  Re1+ {[%clk 0:00:04]} 56. Kd2 {[%clk 0:00:07]}  Rf1 {[%clk 0:00:02]} 57. e6 {[%clk 0:00:08]}  Rd8 {[%clk 0:00:02]} 58. e7 {[%clk 0:00:08]}  Re8 {[%clk 0:00:02]} 59. d7 {[%clk 0:00:08]}  Rxe7 {[%clk 0:00:03]} 60. d8=Q {[%clk 0:00:08]}  Rf2+ {[%clk 0:00:00]} 61. Kc3 {[%clk 0:00:08]} 1-0


[Site "https://www.chess.com"]

[Event "Titled Tuesday Blitz May 16 Late 2023"]
[White "Arabidze, Meri"]
[Black "Martic, Ivan"]
[WhiteFideId "13604040"]
[BlackFideId "929301"]
[WhiteElo "2405"]
[BlackElo "2360"]
[Result "0-1"]
[Round "09"]
[TimeControl "180+2"]
[Date "2023.05.16"]
[WhiteClock "0:00:00"]
[BlackClock "0:00:07"]

1. Nf3 {[%clk 0:01:28]}  d5 {[%clk 0:02:58]} 2. g3 {[%clk 0:01:29]}  Nf6 {[%clk 0:02:57]} 3. Bg2 {[%clk 0:01:29]}  c6 {[%clk 0:02:56]} 4. O-O {[%clk 0:01:30]}  Bg4 {[%clk 0:02:54]} 5. d3 {[%clk 0:01:30]}  Nbd7 {[%clk 0:02:53]} 6. Nbd2 {[%clk 0:01:30]}  e5 {[%clk 0:02:53]} 7. e4 {[%clk 0:01:30]}  dxe4 {[%clk 0:02:54]} 8. dxe4 {[%clk 0:01:30]}  Bc5 {[%clk 0:02:52]} 9. Qe1 {[%clk 0:01:29]}  O-O {[%clk 0:02:51]} 10. h3 {[%clk 0:01:29]}  Bh5 {[%clk 0:02:50]} 11. Nh4 {[%clk 0:01:29]}  Re8 {[%clk 0:02:48]} 12. Nc4 {[%clk 0:01:19]}  b5 {[%clk 0:02:37]} 13. Ne3 {[%clk 0:01:13]}  Qb6 {[%clk 0:02:31]} 14. Kh2 {[%clk 0:01:09]}  Rad8 {[%clk 0:02:28]} 15. a4 {[%clk 0:01:07]}  a6 {[%clk 0:02:26]} 16. Bd2 {[%clk 0:01:05]}  Qb8 {[%clk 0:02:15]} 17. Nhf5 {[%clk 0:01:04]}  Nf8 {[%clk 0:01:56]} 18. axb5 {[%clk 0:01:00]}  axb5 {[%clk 0:01:57]} 19. Bb4 {[%clk 0:00:56]}  Ne6 {[%clk 0:01:50]} 20. Bxc5 {[%clk 0:00:49]}  Nxc5 {[%clk 0:01:51]} 21. Qb4 {[%clk 0:00:49]}  Qb6 {[%clk 0:01:40]} 22. Nc4 {[%clk 0:00:44]}  Na6 {[%clk 0:01:31]} 23. Qa5 {[%clk 0:00:32]}  Qxa5 {[%clk 0:01:22]} 24. Nxa5 {[%clk 0:00:33]}  Nb8 {[%clk 0:01:19]} 25. Nb7 {[%clk 0:00:23]}  Rd2 {[%clk 0:01:17]} 26. g4 {[%clk 0:00:23]}  Bg6 {[%clk 0:01:16]} 27. Ra8 {[%clk 0:00:17]}  Rxc2 {[%clk 0:01:10]} 28. b4 {[%clk 0:00:14]}  h6 {[%clk 0:01:06]} 29. Nfd6 {[%clk 0:00:13]}  Rf8 {[%clk 0:01:04]} 30. Rd1 {[%clk 0:00:12]}  Nbd7 {[%clk 0:01:02]} 31. Rxf8+ {[%clk 0:00:11]}  Nxf8 {[%clk 0:01:03]} 32. Kg3 {[%clk 0:00:11]}  Ne6 {[%clk 0:01:00]} 33. Nf5 {[%clk 0:00:08]}  h5 {[%clk 0:00:53]} 34. Bf1 {[%clk 0:00:07]}  Nxe4+ {[%clk 0:00:47]} 35. Kh4 {[%clk 0:00:07]}  Nxf2 {[%clk 0:00:45]} 36. Rd8+ {[%clk 0:00:06]}  Kh7 {[%clk 0:00:44]} 37. Nbd6 {[%clk 0:00:03]}  hxg4 {[%clk 0:00:37]} 38. hxg4 {[%clk 0:00:04]}  Nxg4 {[%clk 0:00:32]} 39. Kxg4 {[%clk 0:00:04]}  Rf2 {[%clk 0:00:30]} 40. Bd3 {[%clk 0:00:03]}  Rf4+ {[%clk 0:00:29]} 41. Kg3 {[%clk 0:00:04]}  e4 {[%clk 0:00:27]} 42. Bxe4 {[%clk 0:00:03]}  Rxe4 {[%clk 0:00:24]} 43. Nxe4 {[%clk 0:00:04]}  Nxd8 {[%clk 0:00:24]} 44. Ned6 {[%clk 0:00:02]}  Ne6 {[%clk 0:00:20]} 45. Ne7 {[%clk 0:00:02]}  Nd4 {[%clk 0:00:19]} 46. Ne8 {[%clk 0:00:02]}  f6 {[%clk 0:00:16]} 47. Nc7 {[%clk 0:00:02]}  Bd3 {[%clk 0:00:13]} 48. Kf2 {[%clk 0:00:02]}  Bc4 {[%clk 0:00:11]} 49. Ke3 {[%clk 0:00:01]}  Ne6 {[%clk 0:00:10]} 50. Ne8 {[%clk 0:00:02]}  g5 {[%clk 0:00:08]} 51. Nxf6+ {[%clk 0:00:02]}  Kg7 {[%clk 0:00:08]} 52. Nd7 {[%clk 0:00:02]}  Kf7 {[%clk 0:00:08]} 53. Nf5 {[%clk 0:00:02]}  Nc7 {[%clk 0:00:06]} 54. Ne5+ {[%clk 0:00:02]}  Ke6 {[%clk 0:00:06]} 55. Ke4 {[%clk 0:00:02]}  Bd5+ {[%clk 0:00:06]} 56. Kd4 {[%clk 0:00:02]}  Kxf5 {[%clk 0:00:06]} 57. Nd7 {[%clk 0:00:02]}  Ne6+ {[%clk 0:00:06]} 58. Ke3 {[%clk 0:00:02]}  g4 {[%clk 0:00:07]} 59. Nb6 {[%clk 0:00:02]}  g3 {[%clk 0:00:07]} 60. Nc8 {[%clk 0:00:01]}  g2 {[%clk 0:00:07]} 61. Nd6+ {[%clk 0:00:02]}  Ke5 {[%clk 0:00:07]} 62. Nf7+ {[%clk 0:00:00]}  Kf6 {[%clk 0:00:07]} 0-1


[Site "https://www.chess.com"]

[Event "Titled Tuesday Blitz May 16 Late 2023"]
[White "Bogaudinov, Rushan"]
[Black "Fishbein, Alexander"]
[WhiteFideId "4129288"]
[BlackFideId "2000377"]
[WhiteElo "1941"]
[BlackElo "2415"]
[Result "1-0"]
[Round "09"]
[TimeControl "180+2"]
[Date "2023.05.16"]
[WhiteClock "0:00:08"]
[BlackClock "0:00:14"]

1. e4 {[%clk 0:02:57]}  c5 {[%clk 0:02:57]} 2. Nf3 {[%clk 0:02:55]}  d6 {[%clk 0:02:57]} 3. d4 {[%clk 0:02:54]}  cxd4 {[%clk 0:02:57]} 4. Nxd4 {[%clk 0:02:55]}  Nf6 {[%clk 0:02:56]} 5. Nc3 {[%clk 0:02:55]}  Nc6 {[%clk 0:02:56]} 6. Nb3 {[%clk 0:02:47]}  g6 {[%clk 0:02:55]} 7. Be2 {[%clk 0:02:44]}  Bg7 {[%clk 0:02:55]} 8. h4 {[%clk 0:02:35]}  h5 {[%clk 0:02:52]} 9. Bg5 {[%clk 0:02:31]}  Be6 {[%clk 0:02:38]} 10. Qd2 {[%clk 0:02:20]}  Ne5 {[%clk 0:02:18]} 11. Bb5+ {[%clk 0:02:13]}  Bd7 {[%clk 0:02:15]} 12. Qe2 {[%clk 0:02:07]}  Bxb5 {[%clk 0:02:11]} 13. Qxb5+ {[%clk 0:02:06]}  Qd7 {[%clk 0:02:10]} 14. Qxd7+ {[%clk 0:02:02]}  Kxd7 {[%clk 0:02:10]} 15. O-O-O {[%clk 0:01:56]}  Rhc8 {[%clk 0:02:08]} 16. f3 {[%clk 0:01:53]}  Ke8 {[%clk 0:02:04]} 17. Nd5 {[%clk 0:01:45]}  Nxd5 {[%clk 0:02:04]} 18. Rxd5 {[%clk 0:01:44]}  Rc7 {[%clk 0:01:58]} 19. Rhd1 {[%clk 0:01:39]}  Rac8 {[%clk 0:01:57]} 20. c3 {[%clk 0:01:39]}  Nc4 {[%clk 0:01:52]} 21. R5d3 {[%clk 0:01:24]}  b5 {[%clk 0:01:49]} 22. a3 {[%clk 0:00:43]}  a5 {[%clk 0:01:48]} 23. Nd2 {[%clk 0:00:36]}  b4 {[%clk 0:01:23]} 24. Nxc4 {[%clk 0:00:32]}  Rxc4 {[%clk 0:01:22]} 25. axb4 {[%clk 0:00:32]}  axb4 {[%clk 0:01:22]} 26. Bd2 {[%clk 0:00:31]}  bxc3 {[%clk 0:01:21]} 27. Bxc3 {[%clk 0:00:32]}  Bxc3 {[%clk 0:01:20]} 28. Rxc3 {[%clk 0:00:30]}  Rxc3+ {[%clk 0:01:20]} 29. bxc3 {[%clk 0:00:31]}  Rxc3+ {[%clk 0:01:20]} 30. Kd2 {[%clk 0:00:31]}  Ra3 {[%clk 0:01:20]} 31. Ke2 {[%clk 0:00:29]}  Ra2+ {[%clk 0:01:20]} 32. Kf1 {[%clk 0:00:29]}  Kd7 {[%clk 0:01:20]} 33. Rb1 {[%clk 0:00:27]}  Ke6 {[%clk 0:01:20]} 34. Rb5 {[%clk 0:00:26]}  Ra4 {[%clk 0:01:17]} 35. Kf2 {[%clk 0:00:25]}  f5 {[%clk 0:01:16]} 36. exf5+ {[%clk 0:00:22]}  gxf5 {[%clk 0:01:16]} 37. Kg3 {[%clk 0:00:20]}  Kf6 {[%clk 0:01:12]} 38. Rb8 {[%clk 0:00:19]}  e5 {[%clk 0:01:10]} 39. Rh8 {[%clk 0:00:17]}  f4+ {[%clk 0:01:01]} 40. Kf2 {[%clk 0:00:17]}  Ra2+ {[%clk 0:00:59]} 41. Kf1 {[%clk 0:00:17]}  Kg6 {[%clk 0:00:52]} 42. Rg8+ {[%clk 0:00:16]}  Kf5 {[%clk 0:00:49]} 43. Rg5+ {[%clk 0:00:15]}  Ke6 {[%clk 0:00:49]} 44. Rxh5 {[%clk 0:00:15]}  Kd5 {[%clk 0:00:45]} 45. Rh8 {[%clk 0:00:14]}  Kd4 {[%clk 0:00:45]} 46. h5 {[%clk 0:00:15]}  Ra1+ {[%clk 0:00:39]} 47. Kf2 {[%clk 0:00:14]}  Rh1 {[%clk 0:00:40]} 48. g4 {[%clk 0:00:12]}  d5 {[%clk 0:00:37]} 49. Kg2 {[%clk 0:00:12]}  Rh4 {[%clk 0:00:34]} 50. g5 {[%clk 0:00:11]}  e4 {[%clk 0:00:34]} 51. g6 {[%clk 0:00:08]}  e3 {[%clk 0:00:19]} 52. g7 {[%clk 0:00:08]}  e2 {[%clk 0:00:17]} 53. Re8 {[%clk 0:00:08]}  Rxh5 {[%clk 0:00:14]} 54. g8=Q {[%clk 0:00:08]} 1-0


[Site "https://www.chess.com"]